Cogmind - Beta 13 @@@ ROGUE MODE // 2024.04.02 @ 19:12:39 Player: szymekc Result: Destroyed by D6-QP8(R) with Subdweller Beam Cannon Performance ------------- Evolutions (0) 0 Regions Visited (3) 600 Robots Destroyed (18) 90 Value Destroyed (312) 312 Prototype IDs (0) 0 Alien Tech Used (0) 0 Bonus (60) 60 TOTAL SCORE: 1062 Bonus ------- Follower Combat Kills 60 Cogmind --------- Core Integrity 0/250 Matter 300/300 Energy 125/125 System Corruption 0% Temperature Warm (161) Movement Core (150) Ox2 Location -10/Subcaves Parts ------- > --- POWER (1) -------- Light Ion Engine > --- PROPULSION (2) --- (None) > --- UTILITY (2) ------ (None) > --- WEAPON (2) ------- Subdweller Machine Gun > --- INVENTORY (5) ---- Light Nuclear Core Datajack Mining Claw Peak State ------------ > --- POWER ------------ Light Nuclear Core > --- PROPULSION ------- Light Treads Light Treads > --- UTILITY ---------- Improved Heat Sink Large Storage Unit > --- WEAPON ----------- Assault Rifle Mini Grenade Launcher > --- INVENTORY -------- Ion Engine Light Nuclear Core Light Treads Light Treads Light Treads Large Battery High-capacity Matter Pod Authchip [Power] Tractor Beam Assault Rifle Mini Grenade Launcher Mini Grenade Launcher Datajack Mining Laser Mining Claw [Rating: 14] Favorites ----------- Power Ion Engine Engine Ion Engine Power Core Light Nuclear Core Propulsion Light Treads Treads Light Treads Leg Aluminum Leg Utility Large Storage Unit Device Improved Heat Sink Storage Large Storage Unit Protection Scrap Shield Weapon Assault Rifle Energy Gun EM Pulse Gun Ballistic Gun Assault Rifle Launcher Mini Grenade Launcher Slashing Weapon Mining Claw Build | -11 -10 -10 -10 ------- Run | Yrd Mat Min Sub Slots Evolved . | . . . . Power . | . . . . Propulsion . | . . . . Utility . | . . . . Weapon . | . . . . Parts Attached 23 | . 9 11 3 Power 5 | . 2 3 . Engine 4 | . 2 2 . Core 1 | . . 1 . Reactor . | . . . . Propulsion 6 | . 2 4 . Treads 6 | . 2 4 . Leg . | . . . . Wheel . | . . . . Hover . | . . . . Flight . | . . . . Utility 3 | . 2 . 1 Device 1 | . 1 . . Storage 1 | . 1 . . Processor . | . . . . Hackware . | . . . . Protection 1 | . . . 1 Artifact . | . . . . Weapon 9 | . 3 4 2 Energy Gun . | . . . . Energy Cannon . | . . . . Ballistic Gun 5 | . 2 1 2 Ballistic Cannon . | . . . . Launcher 3 | . 1 2 . Special Weapon . | . . . . Impact Weapon . | . . . . Slashing Weapon 1 | . . 1 . Piercing Weapon . | . . . . Special Melee Weapon . | . . . . Unidentified Prototypes . | . . . . Parts Lost 11 | . . 7 4 Power 1 | . . 1 . Propulsion 5 | . . 3 2 Utility 2 | . . 1 1 Weapon 3 | . . 2 1 Highest Loss Streak 4 | . . 4 4 To Critical Strikes . | . . . . Average Slot Usage (%) 90 | . 94 89 82 Engine 12 | . 14 11 14 Core 1 | . . 1 . Treads 26 | . 24 27 26 Leg 1 | . 3 . . Device 6 | . 8 4 . Storage 13 | . 14 14 12 Ballistic Gun 17 | . 26 9 15 Launcher 5 | . . 8 8 Slashing Weapon 4 | . . 8 4 Naked Turns . | . . . . Heaviest Build 30 | 12 30 30 29 Greatest Support 40 | 20 40 40 40 Greatest Overweight (x) 1 | . . 1 . Average Overweight (x) . | . . . . Largest Inventory Capacity 15 | 8 15 15 15 Average Capacity 13 | 8 12 15 14 Most Carried 15 | 6 14 15 15 Average Carried 10 | 6 9 11 11 Final Capacity 15 | 8 15 15 5 Final Carried 14 | 6 14 9 3 Class Distribution -------------------- 100% | Mutant Dominant Class ---------------- Mutant | -10/Materials Mutant | -10/Mines Mutant | -10/Subcaves Resources | -11 -10 -10 -10 ----------- Run | Yrd Mat Min Sub Matter Collected 959 | 200 185 530 44 Remotely . | . . . . Salvage Created 447 | . 200 151 96 Parts 35 | . 19 9 7 Haulers Intercepted 2 | . 2 . . Recyclers Shooed 1 | . 1 . . Parts Field Recycled . | . . . . Retrieved Matter . | . . . . Parts Self-Destructed 3 | . . . 3 Prevented . | . . . . Kills | -11 -10 -10 -10 ------- Run | Yrd Mat Min Sub Combat Hostiles Destroyed 26 | . 5 19 2 Melee 1 | . . 1 . Guns 6 | . 2 2 2 AOE 19 | . 3 16 . Classes Destroyed 9 | . 6 2 1 Worker 3 | . . 3 . Builder 1 | . 1 . . Hauler 2 | . 2 . . Operator 1 | . 1 . . Watcher 1 | . 1 . . Swarmer 5 | . 3 2 . Grunt 3 | . 2 1 . Subdweller 2 | . . . 2 Assembled 16 | . . 16 . Best Kill Streak 15 | . 4 15 2 Combat Bots Only 15 | . 3 15 2 Max Kills in Single Turn 4 | . 2 4 1 Gunslinging . | . . . . Exploded 4 | . 2 4 . Melee 1 | . . 1 . Uniques/NPCs Destroyed . | . . . . Combat | -11 -10 -10 -10 -------- Run | Yrd Mat Min Sub Hostile Shots Fired 142 | . 38 73 31 Missed 44 | . 16 23 5 Damage Taken 1815 | . 248 969 598 Core 252 | . 27 139 86 Absorbed by Shields . | . . . . Core Remaining (%) 100 | 100 . . . Volleys Fired 56 | . 28 22 6 Largest 2 | . 2 2 2 Hottest 55 | . 50 40 55 Shots Fired 98 | . 54 34 10 Gun 85 | . 51 24 10 Cannon . | . . . . Launcher 13 | . 3 10 . Special . | . . . . Kinetic 85 | . 51 24 10 Thermal . | . . . . Explosive 13 | . 3 10 . Electromagnetic . | . . . . Robot Hit Streak 11 | . 9 3 11 Robot Miss Streak 4 | . 4 3 . Penetration Max . | . . . . Secondary Targets 2 | . . 1 1 Max Gunslinging Chain 1 | . . 1 1 Shots Hit Robots 65 | . 34 21 10 Core Hits 56 | . 15 37 4 Critical Kills . | . . . . Critical Parts Destroyed 1 | . . . 1 Critical Strikes 1 | . . . 1 Destroy 1 | . . . 1 Melee Attacks 5 | . . 5 . Impact . | . . . . Slashing 5 | . . 5 . Piercing . | . . . . Sneak Attacks 1 | . . 1 . Combat Hostiles . | . . . . Follow-up Attacks . | . . . . Damage Inflicted 2147 | . 589 1418 140 Guns 679 | . 407 132 140 Cannons . | . . . . Explosions 1353 | . 171 1182 . Melee 100 | . . 100 . Ramming 15 | . 11 4 . Kinetic 679 | . 407 132 140 Thermal . | . . . . Explosive 1353 | . 171 1182 . Electromagnetic . | . . . . Impact . | . . . . Slashing 100 | . . 100 . Piercing . | . . . . Highest Corruption . | . . . . Average Corruption . | . . . . Corruption Purged . | . . . . Corruption Blocked . | . . . . Overload Shots . | . . . . Overflow Damage 103 | . . 103 . Projectiles . | . . . . Explosions 103 | . . 103 . Melee . | . . . . Knockbacks . | . . . . Impact . | . . . . Kinetic . | . . . . Secondary . | . . . . Self-Inflicted Damage 81 | . . 81 . Shots 2 | . . 2 . Rammed 1 | . 1 . . Targets Rammed 4 | . 3 1 . Kicked . | . . . . Crushed 3 | . 2 1 . Highest Temperature 296 | . 8 4 296 Average Temperature 112 | . 2 4 211 Received Heat Transfer 570 | . 93 18 459 Siege Activations . | . . . . Robots Corrupted . | . . . . Combat Hostiles . | . . . . Parts Fried . | . . . . Impact Corruptions . | . . . . Robots Melted . | . . . . Combat Hostiles . | . . . . Parts Melted . | . . . . Heat Transferred . | . . . . Parts Sabotaged . | . . . . Parts Stolen . | . . . . Parts Stripped . | . . . . Power Chain Reactions . | . . . . Alert | -11 -10 -10 -10 ------- Run | Yrd Mat Min Sub Peak Influence 221 | . 221 174 . Initial . | . . . . Average 39 | . 66 21 . Maximum Alert Level 1 | . 1 . . Low Security (%) 98 | 100 95 100 . Level 1 1 | . 4 . . Level 2 . | . . . . Level 3 . | . . . . Level 4 . | . . . . Level 5 . | . . . . High Security . | . . . . Max Security . | . . . . Squads Dispatched . | . . . . Investigation . | . . . . Extermination . | . . . . Reinforcement . | . . . . Assault . | . . . . Garrison . | . . . . Intercept . | . . . . Searches Triggered . | . . . . Construction Impeded . | . . . . Haulers Reinforced . | . . . . Active Scanning Responses . | . . . . Cargo Convoy Interrupts . | . . . . Stealth | -11 -10 -10 -10 --------- Run | Yrd Mat Min Sub Distress Signals . | . . . . Communications Jammed . | . . . . Distress Signals . | . . . . Times Spotted 46 | . 12 25 9 Peak Tracking Total 13 | . 4 13 9 Tactical Retreats 1 | . . 1 . Traps | -11 -10 -10 -10 ------- Run | Yrd Mat Min Sub Traps Triggered . | . . . . Indirectly . | . . . . Trap Hack Attempts . | . . . . Triggered . | . . . . Disarmed . | . . . . Reprogrammed . | . . . . Reused . | . . . . Traps Extracted . | . . . . Installed . | . . . . Triggered 1 | . . 1 . Machines | -11 -10 -10 -10 ---------- Run | Yrd Mat Min Sub Machines Disabled 1 | . 1 . . Max in Single Turn 1 | . 1 . . Machines Repaired . | . . . . Machines Dismantled . | . . . . Machines Sabotaged . | . . . . Overloaded Fab Kills . | . . . . Hacking | -11 -10 -10 -10 --------- Run | Yrd Mat Min Sub Machines Accessed 3 | . 3 . . Terminals 2 | . 2 . . Fabricators . | . . . . Repair Stations . | . . . . Recycling Units 1 | . 1 . . Scanalyzers . | . . . . Garrison Access . | . . . . Total Hacks 8 | . 8 . . Successful 4 | . 4 . . Failed 4 | . 4 . . Catastrophic 1 | . 1 . . Database Lockouts . | . . . . Manual 2 | . 2 . . Terminals 5 | . 5 . . Fabricators . | . . . . Repair Stations . | . . . . Recycling Units 3 | . 3 . . Scanalyzers . | . . . . Garrison Access . | . . . . Terminal Hacks 3 | . 3 . . Part Schematic 1 | . 1 . . Robot Analysis 1 | . 1 . . Zone Layout 1 | . 1 . . Fabricator Hacks . | . . . . Repair Station Hacks . | . . . . Recycling Unit Hacks 1 | . 1 . . Retrieve Components 1 | . 1 . . Scanalyzer . | . . . . Garrison Access Hacks . | . . . . Unauthorized Hacks . | . . . . Terminals . | . . . . Fabricators . | . . . . Repair Stations . | . . . . Recycling Units . | . . . . Scanalyzers . | . . . . Garrison Access . | . . . . Data Cores Recovered 1 | . 1 . . Used . | . . . . Hacking Detections 2 | . 2 . . Full Trace Events . | . . . . Feedback Events . | . . . . Feedback Blocked . | . . . . Robot Schematics Acquired . | . . . . Robots Built . | . . . . Authchips . | . . . . Time . | . . . . Total Robot Build Rating . | . . . . Part Schematics Acquired 1 | . 1 . . Parts Built . | . . . . Authchips . | . . . . Time . | . . . . Total Part Build Rating . | . . . . Parts Repaired . | . . . . Time . | . . . . Parts Recycled . | . . . . Recycled Matter . | . . . . Retrieved Matter . | . . . . Retrieved Components 3 | . 3 . . Parts Scanalyzed . | . . . . Part Schematics Acquired . | . . . . Parts Damaged . | . . . . Bothacking | -11 -10 -10 -10 ------------ Run | Yrd Mat Min Sub Used RIF Installer . | . . . . Robots Hacked . | . . . . Non-combat . | . . . . Combat . | . . . . Robot Hacks Applied . | . . . . Relay Couplers Released . | . . . . Fabnet Peak Effective % . | . . . . Robots Rewired . | . . . . Allies Hacked . | . . . . Hacks Repelled . | . . . . Allies | -11 -10 -10 -10 -------- Run | Yrd Mat Min Sub Total Allies 1 | . . 1 . Largest Group 1 | . . 1 . Highest-Rated Group 31 | . . 31 . Highest-Rated Ally 31 | . . 31 . Total Orders . | . . . . Ally Attacks 7 | . . 7 . Total Damage 83 | . . 83 . Kills 2 | . . 2 . Allies Corrupted . | . . . . Allies Melted . | . . . . Intel | -11 -10 -10 -10 ------- Run | Yrd Mat Min Sub Robot Analysis Total 1 | . 1 . . Derelict Logs Recovered 1 | . . 1 . Drone Launches . | . . . . Drone Recoveries . | . . . . Exploration | -11 -10 -10 -10 ------------- Run | Yrd Mat Min Sub Turns Passed 2046 | 18 811 1117 100 Spaces Moved 1132 | 14 446 628 44 Core . | . . . . Treads 1066 | . 394 628 44 Legs 66 | 14 52 . . Wheels . | . . . . Hover . | . . . . Flight . | . . . . Fastest Speed 120 | 120 120 160 160 Average Speed 157 | 120 155 160 160 Slowest Speed 240 | 120 160 240 160 Overloaded Moves . | . . . . Propulsion Burnouts . | . . . . Robots Hopped . | . . . . Cave-ins Triggered . | . . . . Exploration Rate (%) 39 | 3 53 99 3 Regions Visited 3 Branch Regions 2 Pre-discovered Areas . | . . . . Known Exits Taken . | . . . . Unknown Exits Taken 3 | 1 1 1 . Scrap Searched 3 | . . 1 2 Spaces Dug . | . . . . Terrain Destroyed 97 | . 28 69 . Melee . | . . . . Projectile . | . . . . AOE 97 | . 28 69 . Terrain Rammed . | . . . . Walls Destroyed . | . . . . Machines Disabled . | . . . . Actions | -11 -10 -10 -10 --------- Run | Yrd Mat Min Sub Total 1285 | 15 510 695 65 Wait 23 | 2 1 16 4 Move 1129 | 13 445 627 44 Hop . | . . . . Pick Up 23 | . 15 4 4 Fast Attach 2 | . . . 2 Attach 8 | . 1 6 1 Detach . | . . . . Swap 13 | . 8 5 . Drop 17 | . 9 4 4 Fire 56 | . 28 22 6 Melee 5 | . . 5 . Ram . | . . . . Kick . | . . . . Crush 4 | . 3 1 . Escape Stasis . | . . . . Rewire 5 | . . 5 . Trap . | . . . . Miscellaneous . | . . . . Route ------- -11/Scrapyard -10/Materials (discovered 2 exits: [*Mat] / [*Min]) -10/Mines (discovered 3 exits: [*Mat x2] / [*Sub]) -10/Subcaves History --------- Turn | Location | Event 1 | -11/Scrapyard | Discovered new exit (range 3) 19 | -11/Scrapyard | Entered Materials 324 | -10/Materials | Discovered new exit (range 10) 351 | -10/Materials | Build established: Mutant 755 | -10/Materials | Discovered new exit (range 9) 830 | -10/Materials | Entered Mines 853 | -10/Mines | Met a Derelict bent on vengeance 869 | -10/Mines | Discovered new exit (range 6) 872 | -10/Mines | Received a Mining Laser from a helpful Derelict 909 | -10/Mines | Discovered new exit (range 5) 1207 | -10/Mines | Assembled infested the area 1252 | -10/Mines | Destroyed 15 combat bots 1269 | -10/Mines | Lost 4 parts (1p1n1u1w) 1277 | -10/Mines | Core integrity fell below 50% 1312 | -10/Mines | Lost 3 parts (2n1w) 1844 | -10/Mines | Discovered new exit (range 15) 1947 | -10/Mines | Entered Subcaves 1968 | -10/Subcaves | Shifting Twisted Machinery released Battle Rifle 1973 | -10/Subcaves | Shifting Twisted Machinery released Humpback 2028 | -10/Subcaves | Ambushed by swarm of Subdwellers 2030 | -10/Subcaves | Ambushed by Subdwellers from Twisted Machinery 2030 | -10/Subcaves | Ambushed by Subdwellers from Twisted Machinery 2034 | -10/Subcaves | Core integrity fell below 20% 2047 | -10/Subcaves | Destroyed by D6-QP8(R) with Subdweller Beam Cannon Last Messages --------------- 02032_ JR-Y5T(h) suffers critical hit (Destroy). 02033_ SL-UTO(R) emerges from the Twisted Machinery. 02034_ Acquired 5 matter. 02036_ O1-4KE(R) destroyed. 02036_ Switching to secondary target: D6-QP8(R). 02037_ Acquired 5 matter. 02037_ Critical hit (Meltdown: +300). 02039_ Lgt. Treads destroyed. 02039_ Dropped Lrg. Storage Unit. 02041_ Acquired 1 matter. 02041_ 1O-E6U(R) suffers critical hit (Destroy). 02041_ Destroyed Sub. Monowheel. 02041_ Battle Rifle destroyed. 02043_ Subatomizers dissect the Sub. Monowheel. 02044_ JR-Y5T(h) destroyed. 02045_ Scrap Shield destroyed. 02045_ 1O-E6U(R) destroyed. 02046_ Acquired 8 matter. 02047_ Lgt. Treads destroyed. Map ----- +----------------------------------------------------+ | ????????????????????????????????????????# #????? | | ????????????????????????????????????????## ##????? | | ?????????????????????????????????????????# "#????? | | ????????????????????????????????????????## ##????? | | ????????????????????????????????????????#" ###??? | | ????????????????????????????????????????#" ""#??? | | ????????????????????????????????????????#### "#??? | | ???????????????????????????????????????????# #??? | | ?????????????????????????????????????????#### #??? | | ????????????????????????????????????###### ###? | | ????????????????????????????????????# # #? | | ????????????????????????????????????## "" "#? | | ?????????????????????????????????????# # " "#? | | ???????????????????????????????????# # ## """#? | | ?????????????????????????????????# "### ### "##? | | ?????????????????????????????#### #### ##?#""""#?? | | ????????????????????????????## ## # ##??#""""#?? | | ????????????????????????????# ##%]## # #??#""""#?? | | ??????????????????????????##?# #! ### #?##"""#?? | | ?????????????????????????# ??## #####??##????????? | | ????????????????????????##&### ##????????????????? | | ????????????????????????# !| [##?????????????????? | | ?????????????????????## R#RR%# #?????????????????? | | ????????????????????##!##=#!####?????????????????? | | ????????????????????#!R|R%R##????????????????????? | | ???????????????????????#]@!#?????????????????????? | | ???????????????????????####!#????????????????????? | | ?????????????????????????????????????????????????? | | ?????????????????????????????????????????????????? | | ?????????????????????????????????????????????????? | | ?????????????????????????????????????????????????? | | ?????????????????????????????????????????????????? | | ?????????????????????????????????????????????????? | | ?????????????????????????????????????????????????? | | ?????????????????????????????????????????????????? | | ?????????????????????????????????????????????????? | | ?????????????????????????????????????????????????? | | ?????????????????????????????????????????????????? | | ?????????????????????????????????????????????????? | | ?????????????????????????????????????????????????? | | ?????????????????????????????????????????????????? | | ?????????????????????????????????????????????????? | | ?????????????????????????????????????????????????? | | ?????????????????????????????????????????????????? | | ?????????????????????????????????????????????????? | | ?????????????????????????????????????????????????? | | ?????????????????????????????????????????????????? | | ?????????????????????????????????????????????????? | | ?????????????????????????????????????????????????? | | ?????????????????????????????????????????????????? | +----------------------------------------------------+ Best States ------------- Heat Dissipation 39 Energy Generation 14 Energy Capacity 250 Matter Stores 300 Matter Capacity 300 Sight Range 16 Terrain Scan Density 10 Evasion (%) 55 Recoil Reduction 2 Authchip Count 1 Item Schematics ----------------- Huge Storage Unit | -10/Materials | Hacked Robot Schematics ------------------ None Fabricated ------------ Nothing Alien Tech Used ----------------- None Achievements -------------- None Challenges ------------ None Game ------ Seed AutogunFluxKatana Manual? 0 Play Time 00:19:57 Cumulative 120.6 hours Start 2024.04.02 @ 18:51:55 End 2024.04.02 @ 19:12:39 Sessions 6 Manual Loads 0 Difficulty Rogue Special Mode None Game No. 56 Rogue 54 Adventurer 2 Explorer 0 Win Type - Total 3 Types 3/0/0/0/0/0/0/0/0 Lore% 53 Gallery% 66 Achievement% 54 Wizard Run 0 Options --------- Layout 2 ASCII 0 Keyboard 0 Movement Numpad Keybinds 0 Fullscreen 2 Font 32/SmallcapsGlow Map View 50x44 Zoom Use 0% Tactical HUD 1 Map Filters NONE Filters NONE Steam 1 RUN: d8df5b4a-b7ee-4fb3-a3d4-4bf3ac0eebe1